bitfinex-derivatives/quotes_BTCF0:USTF0_20210705
["timestamp","ask_amount","ask_price","bid_price","bid_amount"]
[1625514050441,0.24057544,34133.0,34132.0,5.03129336]
[1625514050741,0.24057544,34133.0,34132.0,5.09029336]
[1625514050842,0.24057544,34133.0,34132.0,5.03129336]
[1625514050993,0.24057544,34133.0,34132.0,4.97229336]
[1625514051094,0.24057544,34133.0,34132.0,3.61339861]
[1625514051895,0.24057544,34133.0,34132.0,3.67239861]
[1625514051999,0.24057544,34133.0,34132.0,3.73139861]
[1625514052096,0.24057544,34133.0,34132.0,3.67239861]
[1625514052196,0.24057544,34133.0,34132.0,3.73139861]
[1625514052547,0.24057544,34133.0,34132.0,5.09009623]
[1625514052697,0.24057544,34136.0,34132.0,5.03109623]
[1625514052799,1.9745,34137.0,34133.0,0.057]
[1625514052997,1.9745,34137.0,34133.0,0.175]
[1625514053097,1.9745,34137.0,34134.0,0.0034712]
[1625514053301,1.9745,34137.0,34134.0,0.1214712]
[1625514053398,1.9745,34137.0,34134.0,0.1784712]
[1625514053604,1.9745,34137.0,34136.0,4.23827007]
[1625514053701,1.9745,34137.0,34136.0,4.29727007]
[1625514053801,1.9745,34137.0,34136.0,4.35627007]
[1625514053905,1.9745,34137.0,34136.0,4.59684551]
[1625514054002,0.24057544,34140.0,34136.0,4.60031644]
[1625514054103,0.24057544,34140.0,34139.0,4.9132]
[1625514054202,0.24057544,34140.0,34139.0,4.9722]
[1625514054302,0.24057544,34140.0,34139.0,8.08195994]
[1625514054402,0.24057544,34140.0,34139.0,8.14095994]
[1625514054504,0.24057544,34140.0,34139.0,8.14443092]
[1625514055302,0.24057544,34140.0,34139.0,8.65295929]
[1625514055958,0.24057544,34140.0,34139.0,8.89353473]
[1625514056657,0.75704801,34150.0,34139.0,8.89353473]
[1625514056762,0.75704801,34150.0,34140.0,0.057]
[1625514056856,0.57547257,34150.0,34140.0,0.057]
[1625514056956,0.57547257,34150.0,34140.0,0.116]
[1625514057059,0.57547257,34150.0,34141.0,0.00347077]
[1625514057206,0.57547257,34150.0,34141.0,0.06247077]
[1625514057307,0.57547257,34150.0,34141.0,0.12147077]
[1625514057409,0.57547257,34150.0,34142.0,0.057]
[1625514057610,0.57547257,34150.0,34142.0,0.11947089]
[1625514057709,0.059,34150.0,34145.0,1.18457598]
[1625514057811,0.059,34150.0,34146.0,0.057]
[1625514057909,0.059,34150.0,34149.0,0.48115088]
[1625514060114,0.059,34150.0,34149.0,0.54015088]
[1625514060620,1.17397544,34153.0,34149.0,0.54015088]
[1625514060721,1.17397544,34153.0,34150.0,0.116]
[1625514060821,1.17397544,34153.0,34150.0,0.175]
[1625514061323,1.17397544,34153.0,34151.0,0.50687239]
[1625514061423,1.17397544,34153.0,34151.0,0.62287239]
[1625514061524,1.17397544,34153.0,34151.0,0.68187239]
[1625514061622,1.17397544,34153.0,34151.0,0.62287239]
[1625514061973,1.17397544,34153.0,34151.0,0.56387239]
[1625514062282,1.23297544,34153.0,34151.0,0.50687239]
[1625514062377,1.17397544,34153.0,34151.0,0.50687239]
[1625514062726,1.17397544,34153.0,34149.0,0.48115088]
[1625514063430,1.23297544,34153.0,34149.0,0.48115088]
[1625514063527,1.29197544,34153.0,34149.0,0.48115088]
[1625514064426,1.80846343,34153.0,34149.0,0.48115088]
[1625514064776,0.51668325,34152.0,34149.0,0.48115088]
[1625514064878,0.91402325,34152.0,34149.0,0.48115088]
[1625514064978,0.97302325,34152.0,34149.0,0.48115088]
[1625514065179,1.66188587,34152.0,34149.0,0.48115088]
[1625514065380,1.60288587,34152.0,34149.0,0.48115088]
[1625514065580,1.54388587,34152.0,34149.0,0.48115088]
[1625514065783,1.60288587,34152.0,34149.0,0.48115088]
[1625514065879,1.54388587,34152.0,34149.0,0.48115088]
[1625514065980,1.60288587,34152.0,34149.0,0.48115088]
[1625514066083,1.54388587,34152.0,34149.0,0.48115088]
[1625514066180,0.85502325,34152.0,34149.0,0.48115088]
[1625514066483,0.91402325,34152.0,34149.0,0.48115088]
[1625514066581,0.51668325,34152.0,34149.0,0.48115088]
[1625514066681,1.20633002,34151.0,34149.0,0.48115088]
[1625514066881,1.26533002,34151.0,34149.0,0.48115088]
[1625514067584,1.32433002,34151.0,34149.0,0.48115088]
[1625514067682,1.64800002,34151.0,34149.0,0.48115088]
[1625514067982,1.44694033,34150.0,34149.0,0.48115088]
[1625514068084,6.28544033,34150.0,34149.0,0.48115088]
[1625514068188,6.34444033,34150.0,34149.0,0.48115088]
[1625514068390,7.37928664,34150.0,34149.0,0.48115088]
[1625514070893,7.37928664,34150.0,34146.0,0.51027474]
[1625514070993,0.51765868,34147.0,34145.0,1.19065618]
[1625514071092,0.57665868,34147.0,34145.0,1.19065618]
[1625514071947,0.57665868,34147.0,34145.0,0.51028986]
[1625514071948,0.51767946,34146.0,34145.0,0.51028986]
[1625514072046,0.7582549,34146.0,34145.0,0.51028986]
[1625514072399,0.24057544,34146.0,34145.0,1.19126009]
[1625514073300,0.24057544,34146.0,34145.0,2.21165155]
[1625514073701,0.75838049,34146.0,34145.0,1.19126009]
[1625514074052,0.75838049,34146.0,34145.0,0.51028986]
[1625514074452,0.24057544,34146.0,34145.0,1.19074784]
[1625514076053,0.24057544,34146.0,34145.0,1.43132328]
[1625514076207,0.24057544,34146.0,34145.0,2.45206189]
[1625514077462,0.24057544,34146.0,34145.0,2.45553259]
[1625514077962,0.24057544,34146.0,34145.0,2.45206189]
[1625514078260,0.24057544,34146.0,34145.0,2.45553263]
[1625514078562,0.24057544,34146.0,34145.0,2.45206189]
[1625514078762,0.24057544,34146.0,34145.0,2.45553262]
[1625514078862,0.75852879,34146.0,34145.0,1.66896401]
[1625514079014,0.51795335,34146.0,34145.0,1.66896401]
[1625514079112,0.51795335,34146.0,34145.0,1.72796401]
[1625514079325,0.51795335,34146.0,34145.0,1.78696401]
[1625514079415,0.69045148,34147.0,34145.0,1.78696401]
[1625514079416,0.51793865,34148.0,34145.0,2.80759348]
[1625514079519,0.51793865,34148.0,34145.0,2.86459348]
[1625514079916,1.20841627,34151.0,34147.0,3.39920263]
[1625514080020,1.20841627,34151.0,34148.0,0.057]
[1625514080119,1.20841627,34151.0,34150.0,0.48115088]
[1625514080319,1.20841627,34151.0,34150.0,1.16061803]
[1625514080418,0.9334,34153.0,34150.0,2.74841913]
[1625514080419,0.51785572,34152.0,34150.0,2.74841913]
[1625514080519,0.51785572,34152.0,34150.0,2.75188938]
[1625514080721,0.9334,34153.0,34151.0,2.20699323]
[1625514080821,0.9334,34153.0,34151.0,2.21046339]
[1625514080921,0.9334,34153.0,34151.0,2.26746339]
[1625514081020,1.44874889,34154.0,34152.0,0.00347008]
[1625514081120,0.75838871,34154.0,34152.0,2.21033334]
[1625514081220,0.75838871,34154.0,34152.0,2.50026334]
[1625514081571,0.75838871,34154.0,34153.0,0.68225987]
[1625514081671,0.24057544,34154.0,34153.0,2.20953685]
[1625514082877,0.24057544,34154.0,34153.0,1.1913522]
[1625514083677,0.75826146,34154.0,34153.0,1.1878821]
[1625514084179,0.75826146,34154.0,34153.0,1.1913522]
[1625514084532,0.24057544,34154.0,34153.0,1.1913522]
[1625514085234,0.24057544,34154.0,34153.0,1.1878821]
[1625514085537,0.24057544,34154.0,34153.0,1.19135224]
[1625514085697,0.24057544,34154.0,34153.0,2.21223272]
[1625514086043,1.20769464,34156.0,34153.0,2.21223272]
[1625514086157,1.20769464,34156.0,34155.0,0.24057544]
[1625514086350,1.20769464,34156.0,34155.0,0.29957544]
[1625514086596,1.20769464,34156.0,34155.0,0.30304522]
[1625514086696,0.955,34157.0,34155.0,3.70082436]
[1625514086794,0.955,34157.0,34155.0,3.75782436]
[1625514087096,1.44798394,34161.0,34156.0,0.00346972]
[1625514087196,0.81706086,34161.0,34156.0,3.40095261]
[1625514087295,0.81706086,34161.0,34157.0,0.057]
[1625514087847,0.81706086,34161.0,34160.0,0.5095505]
[1625514087949,0.81706086,34161.0,34160.0,0.7205605]
[1625514088198,0.81706086,34161.0,34160.0,0.96113594]
[1625514088498,0.29957544,34161.0,34160.0,0.96113594]
[1625514089150,0.29957544,34161.0,34160.0,1.64120323]
[1625514089453,0.24057544,34161.0,34160.0,1.64120323]
[1625514089602,0.24057544,34161.0,34160.0,1.75920323]
[1625514090355,0.24057544,34161.0,34160.0,3.97146216]
[1625514091407,0.24057544,34161.0,34160.0,3.91246216]
[1625514091508,0.24057544,34161.0,34160.0,3.90899296]
[1625514092108,0.24057544,34161.0,34160.0,3.84999296]
[1625514093014,0.24057544,34161.0,34160.0,3.90899296]
[1625514093113,0.24057544,34161.0,34160.0,3.84999296]
[1625514093415,0.24057544,34161.0,34160.0,3.90899296]
[1625514093515,0.24057544,34161.0,34160.0,1.70020323]
[1625514094218,0.24057544,34161.0,34160.0,2.72179212]
[1625514094419,0.24057544,34161.0,34160.0,2.66279212]
[1625514095719,0.24057544,34161.0,34160.0,1.64120323]
[1625514097223,0.24057544,34161.0,34160.0,0.96113594]
[1625514097874,0.29957544,34161.0,34160.0,0.96113594]
[1625514098234,0.29957544,34161.0,34160.0,1.64623723]
[1625514099832,0.29957544,34161.0,34160.0,0.96113594]
[1625514100185,0.29957544,34161.0,34160.0,0.45158544]
[1625514100282,0.29957544,34161.0,34160.0,0.24057544]
[1625514102845,0.29957544,34161.0,34160.0,0.75369337]
[1625514104097,0.29957544,34161.0,34160.0,1.02441337]
[1625514104199,0.29957544,34161.0,34160.0,1.71103987]
[1625514105051,0.29957544,34161.0,34160.0,1.04883987]
[1625514105150,0.29957544,34161.0,34160.0,0.77811987]
[1625514105250,0.61571544,34161.0,34160.0,0.77811987]
[1625514105652,0.72064782,34161.0,34160.0,0.77811987]
[1625514105802,0.63244782,34161.0,34160.0,0.77811987]
[1625514106102,4.93332132,34161.0,34152.0,0.6892106]
[1625514106205,4.0847,34160.0,34152.0,0.6892106]
[1625514106303,1.03224632,34153.0,34152.0,0.6892106]
[1625514106405,1.09124632,34153.0,34152.0,0.6892106]
[1625514106603,1.15024632,34153.0,34152.0,1.72303774]
[1625514107108,1.15024632,34153.0,34152.0,0.6892106]
[1625514107407,1.15024632,34153.0,34151.0,1.03384385]
[1625514107408,1.15024632,34153.0,34151.0,0.68950163]
[1625514108060,1.23774632,34153.0,34151.0,0.68950163]
[1625514108160,1.15024632,34153.0,34151.0,0.68950163]
[1625514108361,1.83793891,34153.0,34150.0,0.68952759]
[1625514108963,1.83793891,34153.0,34149.0,0.68953232]
[1625514108964,0.68724016,34152.0,34149.0,0.68953232]
[1625514109116,0.80524016,34152.0,34149.0,0.68953232]
[1625514109465,0.80524016,34152.0,34150.0,0.68976787]
[1625514109666,0.74624016,34152.0,34150.0,0.68976787]
[1625514109967,0.059,34152.0,34151.0,0.68975178]
[1625514112071,0.059,34152.0,34151.0,1.72482281]
[1625514113772,0.059,34152.0,34151.0,2.93265795]
[1625514115027,0.059,34152.0,34151.0,1.72482281]
[1625514115327,0.059,34152.0,34151.0,2.93281923]
[1625514115777,0.059,34152.0,34151.0,1.72482281]
[1625514116881,0.40125505,34152.0,34151.0,1.72482281]
[1625514117484,0.059,34152.0,34151.0,2.93288862]
[1625514117582,0.118,34152.0,34151.0,2.93288862]
[1625514117683,0.059,34152.0,34151.0,2.93288862]
[1625514117985,0.059,34152.0,34151.0,1.72482281]
[1625514118185,0.118,34152.0,34151.0,1.72482281]
[1625514118286,0.059,34152.0,34151.0,1.72482281]
[1625514118487,0.40166913,34152.0,34151.0,1.72482281]
[1625514120245,0.46066913,34152.0,34151.0,1.72482281]
[1625514121249,0.40166913,34152.0,34151.0,1.72482281]
[1625514121450,0.46066913,34152.0,34151.0,1.72482281]
[1625514121650,0.80341642,34152.0,34151.0,1.72482281]
[1625514123304,0.80341642,34152.0,34151.0,0.68975178]
[1625514124358,1.83295817,34152.0,34150.0,0.69038832]
[1625514124965,0.118,34152.0,34151.0,0.51778584]
[1625514125260,0.13473481,34152.0,34151.0,0.51778584]
[1625514125562,1.84806166,34152.0,34151.0,0.51778584]
[1625514125763,1.83132685,34152.0,34151.0,0.51778584]
[1625514126566,1.83132685,34152.0,34151.0,0.34519056]
[1625514126965,1.83132685,34152.0,34151.0,0.51778835]
[1625514127165,2.3480682,34152.0,34151.0,0.51778835]
[1625514127267,4.91505985,34152.0,34148.0,0.51783117]
[1625514127666,2.90996283,34149.0,34148.0,0.17261039]
[1625514127766,3.14835283,34149.0,34148.0,0.17261039]
[1625514127868,3.26635283,34149.0,34148.0,0.17261039]
[1625514128118,3.26635283,34149.0,34147.0,0.51784036]
[1625514128217,3.28309469,34149.0,34147.0,0.51784036]
[1625514128378,0.48115088,34148.0,34147.0,0.51784036]
[1625514128479,4.14405088,34148.0,34147.0,0.51784036]
[1625514128619,7.17078326,34148.0,34146.0,0.51780947]
[1625514128920,1.71136936,34147.0,34146.0,0.51780947]
[1625514129119,1.82936936,34147.0,34146.0,0.51780947]
[1625514130373,2.0699448,34147.0,34146.0,0.51780947]
[1625514130922,2.0109448,34147.0,34146.0,0.51780947]
[1625514131023,0.81140454,34147.0,34146.0,1.72575443]
[1625514131123,0.81140454,34147.0,34146.0,6.07655443]
[1625514131426,0.81140454,34147.0,34146.0,7.28452511]
[1625514131427,0.29957544,34147.0,34146.0,7.28452511]
[1625514131926,0.29957544,34147.0,34146.0,7.28799556]
[1625514132627,0.29957544,34147.0,34146.0,8.668601]
[1625514133926,0.29957544,34147.0,34146.0,4.317801]
[1625514134980,0.29957544,34147.0,34146.0,2.93719556]
[1625514137530,0.29957544,34147.0,34146.0,4.31809644]
[1625514137631,0.29957544,34147.0,34146.0,4.54597644]
[1625514138786,0.29957544,34147.0,34146.0,3.16507556]
[1625514139585,0.29957544,34147.0,34146.0,2.93719556]
[1625514143493,0.29957544,34147.0,34146.0,1.72922488]
[1625514143794,0.80666072,34147.0,34146.0,1.72922488]
[1625514143943,0.82346796,34147.0,34146.0,1.72922488]
[1625514144496,0.80666072,34147.0,34146.0,1.72922488]
[1625514144699,0.29957544,34147.0,34146.0,1.72922488]
[1625514145514,0.29957544,34147.0,34146.0,1.93425488]
[1625514145905,0.29957544,34147.0,34146.0,3.14241272]
[1625514147401,0.31637796,34147.0,34146.0,3.14241272]
[1625514147701,0.29957544,34147.0,34146.0,3.14241272]
[1625514148251,0.29957544,34147.0,34146.0,3.13894227]
[1625514148455,0.29957544,34147.0,34146.0,3.14241283]
[1625514149004,0.31637808,34147.0,34146.0,3.14241283]
[1625514149305,0.31637808,34147.0,34146.0,1.93425499]
[1625514149406,0.31637808,34147.0,34146.0,1.72922499]
[1625514150558,0.48551492,34147.0,34146.0,1.72922499]
[1625514151360,0.82359705,34147.0,34146.0,1.72922499]
[1625514151761,0.48551492,34147.0,34146.0,1.72922499]
[1625514152064,0.82382074,34147.0,34146.0,1.72922499]
[1625514153317,0.82382074,34147.0,34146.0,1.81782499]
[1625514153418,0.82382074,34147.0,34146.0,1.72922499]
[1625514155072,1.08920074,34147.0,34146.0,1.72922499]
[1625514155174,1.64820074,34147.0,34146.0,1.72922499]
[1625514155288,1.64820074,34147.0,34146.0,1.70712499]
[1625514155373,1.64820074,34147.0,34146.0,1.20355443]
[1625514155471,1.64820074,34147.0,34146.0,1.11535443]
[1625514155672,1.68291403,34147.0,34146.0,1.03405443]
[1625514155775,4.39546628,34147.0,34145.0,0.1685051]
[1625514155872,4.30175299,34147.0,34145.0,0.1685051]
[1625514155972,4.36075299,34147.0,34145.0,0.1447051]
[1625514156174,0.01681362,34146.0,34145.0,0.1447051]
[1625514156274,0.13481362,34146.0,34145.0,0.1098051]
[1625514156378,3.84954252,34146.0,34141.0,0.34563214]
[1625514156676,0.48115088,34142.0,34141.0,0.34563214]
[1625514156876,0.59915088,34142.0,34141.0,0.34563214]
[1625514156974,1.27589956,34142.0,34140.0,0.53644019]
[1625514157076,0.5,34141.0,34140.0,0.53644019]
[1625514157174,0.559,34141.0,34140.0,0.53644019]
[1625514157277,0.618,34141.0,34140.0,0.53644019]
[1625514157474,0.618,34141.0,34140.0,0.03624019]
[1625514157574,0.618,34141.0,34137.0,1.20971249]
[1625514157575,0.63482632,34141.0,34137.0,1.20971249]
[1625514157875,4.8622,34136.0,34135.0,1.20957848]
[1625514157974,0.27826668,34140.0,34135.0,1.20957848]
[1625514157975,0.5,34139.0,34135.0,1.20957848]
[1625514158101,0.33726668,34140.0,34136.0,0.00347161]
[1625514158182,1.24310628,34139.0,34136.0,0.00347161]
[1625514158479,0.059,34139.0,34137.0,1.20894363]
[1625514158634,0.48115088,34138.0,34137.0,1.20894363]
[1625514158830,0.59915088,34138.0,34137.0,1.20894363]
[1625514158934,0.59915088,34138.0,34137.0,1.21241506]
[1625514159429,0.59915088,34138.0,34137.0,1.20894363]
[1625514159530,0.54015088,34138.0,34137.0,1.20894363]
[1625514159631,0.54015088,34138.0,34136.0,1.26629122]
[1625514159741,0.54015088,34138.0,34137.0,0.00347129]
[1625514160131,0.54015088,34138.0,34137.0,2.59467387]
[1625514160382,0.59915088,34138.0,34137.0,2.59467387]
[1625514161832,0.59915088,34138.0,34137.0,2.59120258]
[1625514162083,0.59915088,34138.0,34137.0,2.59467389]
[1625514162184,0.59915088,34138.0,34137.0,1.21269918]
[1625514162635,0.59915088,34138.0,34137.0,1.20922787]
[1625514163633,0.59915088,34138.0,34137.0,1.21269916]
[1625514163935,0.59915088,34138.0,34137.0,1.20922787]
[1625514164834,0.59915088,34138.0,34136.0,1.26633857]
[1625514164936,0.59915088,34138.0,34136.0,1.20933857]
[1625514165036,0.59915088,34138.0,34136.0,1.26633857]
[1625514165235,0.59915088,34138.0,34136.0,1.20933857]
[1625514165388,0.59915088,34138.0,34137.0,1.2093478]
[1625514166892,0.59915088,34138.0,34137.0,1.5437678]
[1625514167646,0.59915088,34138.0,34137.0,2.92634476]
[1625514167744,0.48115088,34138.0,34137.0,2.92634476]
[1625514167846,0.48115088,34138.0,34137.0,2.98534476]
[1625514167954,0.48115088,34138.0,34137.0,2.98881583]
[1625514168045,0.48115088,34138.0,34137.0,3.04781583]
[1625514168143,0.48115088,34138.0,34137.0,3.0591406]
[1625514168745,0.48115088,34138.0,34137.0,3.29971604]
[1625514168844,0.24057544,34142.0,34137.0,3.29971604]
[1625514168945,0.24057544,34142.0,34138.0,0.06832315]
[1625514169046,0.24057544,34142.0,34138.0,0.12732315]
[1625514169148,0.24057544,34142.0,34139.0,0.01132247]
[1625514169245,0.24057544,34142.0,34141.0,4.14711677]
[1625514169344,0.24057544,34142.0,34141.0,4.15843895]
[1625514169446,0.24057544,34142.0,34141.0,9.41973895]
[1625514169546,0.24057544,34142.0,34141.0,9.4822095]
[1625514170698,0.24057544,34142.0,34141.0,9.72278494]
[1625514174110,0.24057544,34142.0,34141.0,9.66378494]
[1625514174567,0.24057544,34142.0,34141.0,9.60478494]
[1625514174662,0.24057544,34142.0,34141.0,9.66378494]
[1625514175867,0.24057544,34142.0,34141.0,9.72278494]
[1625514178623,0.24057544,34142.0,34141.0,9.66378494]
[1625514181178,0.24057544,34142.0,34141.0,9.72278494]
[1625514184992,0.24057544,34142.0,34141.0,9.66378494]
[1625514185304,0.24057544,34142.0,34141.0,9.72278494]
[1625514185837,0.24057544,34142.0,34141.0,9.66378494]
[1625514186088,0.24057544,34142.0,34141.0,10.70088923]
[1625514186687,0.24057544,34142.0,34141.0,10.75988923]
[1625514190952,0.24057544,34142.0,34141.0,10.97916923]
[1625514191856,0.24057544,34142.0,34141.0,10.92016923]
[1625514191956,0.24057544,34142.0,34141.0,10.70088923]
[1625514192158,0.24057544,34142.0,34141.0,10.75988923]
[1625514192308,0.24057544,34142.0,34141.0,10.70088923]
[1625514192410,0.24057544,34142.0,34141.0,10.75988923]
[1625514192508,0.24057544,34142.0,34141.0,10.70088923]
[1625514192609,0.24057544,34142.0,34141.0,10.75988923]
[1625514193410,0.24057544,34142.0,34141.0,10.98385923]
[1625514194112,0.24057544,34142.0,34141.0,10.92485923]
[1625514195166,0.24057544,34142.0,34141.0,10.98385923]
[1625514195267,0.24057544,34142.0,34141.0,10.92485923]
[1625514195368,0.24057544,34142.0,34141.0,11.44334341]
[1625514195468,0.24057544,34142.0,34141.0,11.50234341]
[1625514198127,0.24057544,34142.0,34141.0,7.35480696]
[1625514198576,0.24057544,34142.0,34141.0,11.50249475]
[1625514202834,0.24057544,34142.0,34141.0,11.44349475]
[1625514205141,0.24057544,34142.0,34141.0,11.50249475]
[1625514205240,0.24057544,34142.0,34141.0,11.44349475]
[1625514206595,0.32707544,34142.0,34141.0,11.50249475]
[1625514206695,0.24057544,34142.0,34141.0,11.50249475]
[1625514207046,0.24057544,34142.0,34141.0,11.44349475]
[1625514210050,0.24057544,34142.0,34141.0,11.50249475]
[1625514210750,0.24057544,34142.0,34141.0,11.44349475]
[1625514211853,0.24057544,34142.0,34141.0,11.50249475]
[1625514211953,0.24057544,34142.0,34141.0,11.44349475]
[1625514212057,0.08658228,34145.0,34141.0,11.44349475]
[1625514212157,0.08658228,34145.0,34142.0,0.057]
[1625514212257,0.08658228,34145.0,34142.0,0.175]
[1625514212358,0.08658228,34145.0,34143.0,0.00347007]
[1625514212458,0.08658228,34145.0,34143.0,0.06247007]
[1625514212860,0.08658228,34145.0,34144.0,0.00347017]
[1625514212959,3.97367959,34146.0,34144.0,4.35597034]
[1625514213158,0.01678012,34145.0,34144.0,4.35597034]
[1625514213461,0.01678012,34145.0,34144.0,0.24404561]
[1625514213913,3.97367959,34146.0,34144.0,0.24404561]
[1625514214211,3.97367959,34146.0,34145.0,0.00347014]
[1625514214410,3.99045953,34146.0,34145.0,0.00347014]
[1625514214710,3.99045953,34146.0,34145.0,4.11269706]
[1625514216517,4.42262136,34146.0,34145.0,4.11269706]
[1625514218120,4.42262136,34146.0,34145.0,4.7936674]
[1625514218572,5.17358696,34146.0,34145.0,4.7936674]
[1625514218674,5.23258696,34146.0,34145.0,4.7936674]
[1625514218929,5.71373784,34146.0,34145.0,4.7936674]
[1625514219474,9.34654059,34146.0,34145.0,1.19809384]
[1625514219675,9.55974059,34146.0,34145.0,1.19809384]
[1625514220029,9.55974059,34146.0,34145.0,0.00347014]
[1625514220682,9.55974059,34146.0,34145.0,0.08849701]
[1625514220884,9.55974059,34146.0,34145.0,0.08502687]
[1625514222230,9.55974059,34146.0,34145.0,0.08849749]
[1625514222432,9.55974059,34146.0,34145.0,1.19366483]
[1625514222531,9.34654059,34146.0,34145.0,1.19366483]
[1625514223034,9.34654059,34146.0,34145.0,1.19019421]
[1625514224139,9.34654059,34146.0,34145.0,2.21113536]
[1625514225944,9.34654059,34146.0,34145.0,1.19019421]
[1625514226294,9.34654059,34146.0,34145.0,2.21152773]
[1625514226896,8.86538971,34146.0,34145.0,2.21152773]
[1625514227449,9.58711603,34146.0,34145.0,2.21152773]
[1625514228450,9.58711603,34146.0,34145.0,0.68011098]
[1625514229150,9.57033609,34146.0,34145.0,0.68011098]
[1625514229351,9.5871466,34146.0,34145.0,0.68011098]
[1625514233055,9.8264466,34146.0,34145.0,0.68011098]
[1625514233605,9.8264466,34146.0,34144.0,1.02306953]
[1625514233606,11.38489814,34146.0,34144.0,0.08537207]
[1625514234058,6.40536974,34145.0,34144.0,0.08537207]
[1625514234157,6.48118174,34145.0,34144.0,0.08537207]
[1625514234257,6.54018174,34145.0,34144.0,0.08537207]
[1625514234568,6.54018174,34145.0,34143.0,1.19478836]
[1625514234914,4.86433272,34144.0,34143.0,1.19478836]
[1625514235014,4.92333272,34144.0,34143.0,1.19478836]
[1625514235115,4.98233272,34144.0,34143.0,1.19478836]
[1625514235622,4.92333272,34144.0,34143.0,1.19478836]
[1625514235716,4.98233272,34144.0,34143.0,1.19478836]
[1625514236618,4.98233272,34144.0,34143.0,0.51202049]
[1625514237016,4.98233272,34144.0,34142.0,1.19487249]
[1625514237271,0.01681205,34143.0,34142.0,1.19487249]
[1625514237368,4.86348791,34143.0,34142.0,0.68276494]
[1625514237488,4.98148791,34143.0,34142.0,0.68276494]
[1625514237568,5.22206335,34143.0,34142.0,0.68276494]
[1625514237974,5.22206335,34143.0,34142.0,0.51247638]
[1625514238321,5.22206335,34143.0,34142.0,1.19531143]
[1625514241231,5.22206335,34143.0,34142.0,0.51247638]
[1625514241880,5.72206335,34143.0,34142.0,0.51247638]
[1625514241981,5.72206335,34143.0,34141.0,1.19554003]
[1625514242080,0.088,34142.0,34141.0,1.19554003]
[1625514242182,0.088,34142.0,34141.0,1.10834003]
[1625514242284,0.088,34142.0,34141.0,0.08543572]
[1625514242285,4.35939178,34142.0,34141.0,0.08543572]
[1625514242381,4.8762139,34142.0,34141.0,0.01343572]
[1625514242631,4.8762139,34142.0,34139.0,0.51261429]
[1625514242733,6.43368837,34142.0,34138.0,0.51293192]
[1625514242931,5.1822,34139.0,34138.0,0.51293192]
[1625514243034,5.50884,34139.0,34138.0,0.51293192]
[1625514243140,5.56784,34139.0,34138.0,0.51293192]
[1625514243233,9.73634456,34139.0,34136.0,0.51079514]
[1625514243448,0.01682253,34138.0,34136.0,0.51079514]
[1625514243532,0.72172632,34137.0,34136.0,0.51079514]
[1625514243632,0.78072632,34137.0,34136.0,0.51079514]
[1625514243733,4.99140411,34137.0,34136.0,0.51079514]
[1625514244035,5.00822676,34137.0,34136.0,0.51079514]
[1625514244534,5.09682676,34137.0,34136.0,0.51079514]
[1625514245434,3.71299182,34137.0,34135.0,0.508406]
[1625514245637,3.62439182,34137.0,34135.0,0.508406]
[1625514245836,0.01682271,34136.0,34135.0,0.508406]
[1625514245938,2.84271671,34136.0,34135.0,0.508406]
[1625514246037,2.90171671,34136.0,34135.0,0.508406]
[1625514246638,2.884894,34136.0,34135.0,0.508406]
[1625514246939,2.90171469,34136.0,34135.0,0.508406]
[1625514248445,1.6912526,34136.0,34135.0,0.508406]
[1625514248541,1.6322526,34136.0,34135.0,0.508406]
[1625514248744,1.61543191,34136.0,34135.0,0.508406]
[1625514248843,1.55643191,34136.0,34135.0,0.51187727]
[1625514249598,1.2402581,34137.0,34135.0,2.70622574]
[1625514249697,1.2402581,34137.0,34135.0,3.09196574]
[1625514250148,1.2402581,34137.0,34136.0,0.00347079]
[1625514250247,1.2402581,34137.0,34136.0,4.05031391]
[1625514250248,0.72172632,34137.0,34136.0,4.05031391]
[1625514250747,4.82172632,34137.0,34136.0,4.05031391]
[1625514251648,4.82172632,34137.0,34136.0,4.10931391]
[1625514251749,4.82172632,34137.0,34136.0,4.05031391]
[1625514252050,4.82172632,34137.0,34136.0,4.10931391]
[1625514252149,4.82172632,34137.0,34136.0,4.05031391]
[1625514252350,4.82172632,34137.0,34136.0,3.54445852]
[1625514252552,4.82172632,34137.0,34136.0,3.60345852]
[1625514252951,4.82172632,34137.0,34136.0,4.10882086]
[1625514254857,4.82172632,34137.0,34136.0,4.04982086]
[1625514255856,5.12861632,34137.0,34136.0,4.04982086]
[1625514256359,1.02861632,34137.0,34136.0,4.04982086]
[1625514256860,1.02861632,34137.0,34136.0,4.10882086]
[1625514256960,0.72172632,34137.0,34136.0,4.10882086]
[1625514263477,0.72172632,34137.0,34136.0,4.04982086]
[1625514264781,0.72172632,34137.0,34136.0,4.10882086]
[1625514267036,0.77126331,34139.0,34136.0,4.10882086]
[1625514267137,0.77126331,34139.0,34136.0,4.16582086]
[1625514267337,0.77126331,34139.0,34138.0,2.1845642]
[1625514267437,0.77126331,34139.0,34138.0,2.6886944]
[1625514267638,0.77126331,34139.0,34138.0,2.69216519]
[1625514267740,1.49298963,34139.0,34138.0,2.69216519]
[1625514268790,1.49298963,34139.0,34138.0,2.75116519]
[1625514269894,1.49298963,34139.0,34138.0,2.69216519]
[1625514269994,1.49298963,34139.0,34138.0,2.75116519]
[1625514270145,1.49298963,34139.0,34138.0,2.69216519]
[1625514270344,1.49298963,34139.0,34138.0,2.75116519]
[1625514270445,1.49298963,34139.0,34138.0,2.69216519]
[1625514270798,1.49298963,34139.0,34138.0,2.75116519]
[1625514270996,1.49298963,34139.0,34138.0,2.69216519]
[1625514271449,1.49298963,34139.0,34138.0,2.75116519]
[1625514271698,1.49298963,34139.0,34138.0,2.69216519]
[1625514272052,1.49298963,34139.0,34138.0,2.75116519]
[1625514272160,1.24060963,34139.0,34138.0,2.75116519]
[1625514272651,1.24060963,34139.0,34138.0,4.09725025]
[1625514273003,1.45820963,34139.0,34138.0,4.03825025]
[1625514273403,5.13340963,34139.0,34138.0,4.03825025]
[1625514274007,6.17159618,34139.0,34138.0,2.69216519]
[1625514274607,6.18840818,34139.0,34138.0,2.69216519]
[1625514278218,7.40052122,34139.0,34138.0,2.69216519]
[1625514286238,6.18840818,34139.0,34138.0,2.69216519]
[1625514286691,7.40060596,34139.0,34138.0,2.69216519]
[1625514290597,7.40060596,34139.0,34138.0,1.51586139]
[1625514290947,7.40060596,34139.0,34138.0,2.69129011]
[1625514291951,7.40060596,34139.0,34138.0,1.51586139]
[1625514293502,8.78620796,34139.0,34138.0,1.51586139]
[1625514294355,8.78620796,34139.0,34138.0,0.50760099]
[1625514295357,8.78620796,34139.0,34138.0,1.51928297]
[1625514296057,8.78620796,34139.0,34138.0,0.50760099]
[1625514296557,8.78620796,34139.0,34138.0,1.51948029]
[1625514297060,8.78620796,34139.0,34138.0,1.57848029]
[1625514297413,5.11100796,34139.0,34138.0,1.90003029]
[1625514297511,4.89340796,34139.0,34138.0,1.90003029]
[1625514297611,4.89340796,34139.0,34138.0,1.95903029]
[1625514297863,3.50780596,34139.0,34138.0,1.95903029]
[1625514298413,3.50780596,34139.0,34138.0,4.4844918]
[1625514298414,1.25742163,34139.0,34138.0,4.4844918]